{"text_format":"1","workbook":"xlsx","n_sheets":6,"sheets":["説明資料","入力_請求書","入力_明細合計表","請求書","明細合計表","請求明細書2ページ目以降(印刷対象外)"],"not_rendered":{"charts":0,"images":0,"macros":1,"external_links":0,"defined_names":77,"comments":0,"pivot_tables":0},"unopened":[],"bounds":{"document_bytes":16777216,"sheet_cells":100000,"rows_first":2000,"rows_last":500,"rows_between":2000,"halvings":0,"cell_chars":16384,"cell_head_chars":4096},"cells_cut":0,"cells_raw":0,"read":"whole","date_system":"1900"}

{"sheet":"説明資料","index":0,"n_rows":23,"n_cols":19,"rows_kept":23,"cut":false,"hidden":false,"merged":[]}
[null,null,null,null,null,null,null,null,null,null,null,null,null,null,null,null,null,null,"2026-05-01"]
[null,"請求書 新フォーマットでの発行手順について",null,null,null,null,null,null,null,null,null,null,null,null,"西武建設株式会社 経理部 "]
[null,null,null,null,null,null,null,null,null,null,null,null,null,null,"04-2926-3327"]
[null,"1. 「入力_請求書」シートへの入力 ","色付きのセルが入力可能箇所となっております。必要事項をご入力ください。"]
[]
[null,"2. 「入力_明細合計表」シートの確認 ","「入力_請求書」シートとの間で入力内容の整合性チェックを行っております。"]
[null,null,"エラーの警告メッセージが表示されている場合は、警告が消えるまで入力情報の修正・追記をお願いいたします。"]
[]
[null,"3. PDF形式での出力（請求書の発行）","「入力_請求書」シート内にある「PDF発行ボタン」をクリックし、PDFを出力してください。 "]
[null,null,"※マクロがご利用いただけない環境の場合は、お手数ですが「請求書」および「請求明細合計表」シートを直接PDF形式で保存してご出力ください。"]
[]
[null,"■ 提出にあたってのルール ","「請求書」および「明細合計表」の提出は必須となります。以降のページ（その他添付書類など）の書式は任意ですが、必ず一つのPDFファイルにまとめてご提出をお願いいたします。"]
[]
[null,"■ 請求書ファイル名のルール"]
[null,"初回提出: ","工事コード_yyyymm(請求年月)_会社名_現場名_請求書.pdf 　　 ※PDF発行ボタンを押下後、請求書のファイル名は初回提出として自動で付与されます。"]
[null,"再提出の場合: ","工事コード_yyyymm_会社名_現場名_請求書_再提出1回目.pdf"]
[null,"同じ現場で複数請求がある場合:","工事コード_yyyymm_会社名_現場名_請求書_0X.pdf　　 　　     ※「0X」には連番等をご記載ください。"]
[]
[null,"■ 締日について","月末締めとし、支払サイトは注文書の通りとなります。"]
[]
[null,"■ 提出方法について","主要な現場には、Boxのファイルリクエストを設定しております。 その他、個別の提出タイミングや提出先に関する詳細は、各現場の事務担当者までお問い合わせください。"]
[]
[null,"■ その他 ","本請求書フォーマットは、お取引先と弊社の双方における業務効率化を目的とし、適宜見直しを行ってまいります。書式を更新した際は、弊社ホームページにてお知らせいたします。"]

{"sheet":"入力_請求書","index":1,"n_rows":32,"n_cols":81,"rows_kept":32,"cut":false,"hidden":false,"merged":[[14,29,14,35],[2,51,2,56],[2,48,2,50],[11,50,11,56],[10,36,10,42],[11,36,11,42],[11,43,11,49],[7,27,7,56],[10,50,10,56],[6,27,6,56],[8,36,8,39],[8,40,8,46],[9,50,9,56],[9,23,9,28],[8,51,8,56],[9,43,9,49],[8,28,8,35],[10,29,10,35],[10,43,10,49],[10,23,10,28],[15,23,15,28],[4,9,4,10],[4,11,4,12],[4,23,5,26],[4,27,5,56],[7,23,7,26],[6,1,7,5],[6,6,7,21],[9,1,9,5],[9,6,9,21],[4,1,4,5],[5,1,5,5],[4,6,4,8],[5,6,5,21],[9,29,9,35],[8,47,8,50],[6,23,6,26],[8,23,8,26],[8,1,8,5],[8,6,8,21],[9,36,9,42],[12,50,12,56],[11,29,11,35],[12,29,12,35],[16,36,16,42],[13,50,13,56],[15,43,15,49],[17,36,17,42],[10,1,10,5],[24,1,24,3],[24,4,24,26],[11,6,12,21],[13,1,13,5],[13,6,13,7],[21,1,21,26],[22,1,22,3],[22,4,22,13],[22,14,22,17],[22,18,22,26],[23,1,23,3],[23,4,23,13],[11,1,12,5],[13,23,13,28],[12,23,12,28],[11,23,11,28],[16,6,16,13],[16,18,16,21],[10,6,10,21],[23,43,23,49],[23,50,23,56],[24,29,24,35],[24,36,24,42],[15,50,15,56],[12,43,12,49],[14,36,14,42],[13,36,13,42],[15,6,15,7],[14,23,14,28],[17,33,17,35],[18,43,18,49],[17,43,17,49],[17,29,17,32],[13,29,13,35],[16,50,16,56],[14,43,14,49],[13,43,13,49],[14,50,14,56],[15,36,15,42],[16,29,16,35],[15,29,15,35],[12,36,12,42],[16,43,16,49],[17,50,17,56],[24,43,24,49],[24,50,24,56],[21,50,21,56],[22,29,22,35],[22,36,22,42],[22,43,22,49],[22,50,22,56],[25,1,25,3],[25,4,25,26],[18,29,18,35],[18,36,18,42],[18,50,18,56],[21,29,21,35],[21,36,21,42],[21,43,21,49],[25,29,25,35],[25,36,25,42],[23,14,23,17],[23,18,23,26],[25,43,25,49],[25,50,25,56],[23,29,23,35],[23,36,23,42]]}
[]
[]
[]
[null,null,null,null,null,null,null,null,null,null,null,null,null,null,null,null,null,null,null,null,null,null,null,null,null,null,null,null,null,null,null,null,null,null,null,null,null,null,null,null,null,null,null,null,null,null,null,null,null,null,null,null,null,null,null,null,null,null,null,null,null,null,null,null,null,null,null,null,null,null,null,null,null,null,null,null,null,null,null,"課税仕入５％外税",0.05]
[null,"請求年月",null,null,null,null,null,null,null,null,null,{"$f":"IF(G5=\"\",\"\",EOMONTH(DATE(G5, J5, 1), 0))","v":""},null,null,null,null,null,null,null,null,null,null,null,"会社名",null,null,null,null,null,null,null,null,null,null,null,null,null,null,null,null,null,null,null,null,null,null,null,null,null,null,null,null,null,null,null,null,null,null,null,null,null,null,null,null,null,null,null,null,null,null,null,null,null,null,null,null,null,null,null,"課税仕入８％外税",0.08]
[null,"工事(物件)コード",null,null,null,null,null,null,null,null,null,null,null,null,null,null,null,null,null,null,null,null,null,null,null,null,null,null,null,null,null,null,null,null,null,null,null,null,null,null,null,null,null,null,null,null,null,null,null,null,null,null,null,null,null,null,null,null,null,null,null,null,null,null,null,null,null,null,null,null,null,null,null,null,null,null,null,null,null,"非課税",0]
[null,"工事件名又は\n担当部署名",null,null,null,null,null,null,null,null,null,null,null,null,null,null,null,null,null,null,null,null,null,"住所",null,null,null,null,null,null,null,null,null,null,null,null,null,null,null,null,null,null,null,null,null,null,null,null,null,null,null,null,null,null,null,null,null,null,null,null,null,null,null,null,null,null,null,null,null,null,null,null,null,null,null,null,null,null,null,"対象外",0]
[null,null,null,null,null,null,null,null,null,null,null,null,null,null,null,null,null,null,null,null,null,null,null,"メールアドレス",null,null,null,null,null,null,null,null,null,null,null,null,null,null,null,null,null,null,null,null,null,null,null,null,null,null,null,null,null,null,null,null,null,null,null,null,null,null,null,null,null,null,null,null,null,null,2026,1,null,null,null,null,null,null,null,"消費税差額",0]
[null,"取引先コード",null,null,null,null,null,null,null,null,null,null,null,null,null,null,null,null,null,null,null,null,null,"登録番号",null,null,null,"T",null,null,null,null,null,null,null,null,"担当者",null,null,null,null,null,null,null,null,null,null,"電話番号",null,null,null,null,null,null,null,null,null,null,null,null,null,null,null,null,null,null,null,null,null,null,2027,2]
[null,"注文書番号",null,null,null,null,null,null,null,null,null,null,null,null,null,null,null,null,null,null,null,null,null,"項目",null,null,null,null,null,"契約金額",null,null,null,null,null,null,"既請求金額",null,null,null,null,null,null,"今回請求額",null,null,null,null,null,null,"残金額",null,null,null,null,null,null,null,null,null,null,null,"既請求金額","今回請求","請求累計",null,null,null,null,null,2028,3]
[null,"請求書番号",null,null,null,null,null,null,null,null,null,null,null,null,null,null,null,null,null,null,null,null,null,"契約金額",null,null,null,null,null,null,null,null,null,null,null,null,null,null,null,null,null,null,null,null,null,null,null,null,null,null,{"$f":"IF(AD11=0,0,AD11-AK11-AR11)","v":0},null,null,null,null,null,null,null,null,null,null,null,null,-500000,{"$f":"SUM(BK11:BL11)","v":-500000},null,null,null,null,null,2029,4]
[null,"請求内容",null,null,null,null,null,null,null,null,null,null,null,null,null,null,null,null,null,null,null,null,null,"変更増額",null,null,null,null,null,null,null,null,null,null,null,null,null,null,null,null,null,null,null,null,null,null,null,null,null,null,{"$f":"AD12-AK12-AR12","v":0},null,null,null,null,null,null,null,null,null,null,null,0,null,0,null,null,null,null,null,2030,5]
[null,null,null,null,null,null,null,null,null,null,null,null,null,null,null,null,null,null,null,null,null,null,null,"変更減額",null,null,null,null,null,null,null,null,null,null,null,null,null,null,null,null,null,null,null,null,null,null,null,null,null,null,{"$f":"AD13-AK13-AR13","v":0},null,null,null,null,null,null,null,null,null,null,null,0,null,0,null,null,null,null,null,2031,6]
[null,"支払サイト",null,null,null,null,null,null,"日",null,null,null,null,null,null,null,null,null,null,null,null,null,null,"税抜計",null,null,null,null,null,{"$f":"SUM(AD11:AH13)","v":0},null,null,null,null,null,null,{"$f":"SUM(AK11:AQ13)","v":0},null,null,null,null,null,null,{"$f":"SUM(AR11:AV13)","v":0},null,null,null,null,null,null,{"$f":"IF(AD14=0,0,AD14-AK14-AR14)","v":0},null,null,null,null,null,null,null,null,null,null,null,0,-500000,-500000,null,null,null,null,null,2032,7]
[null,null,null,null,null,null,null,null,null,null,null,null,null,null,null,null,null,null,null,null,null,null,null,"消費税等",null,null,null,null,null,{"$f":"ROUNDDOWN(AD14*0.1,0)","v":0},null,null,null,null,null,null,null,null,null,null,null,null,null,{"$f":"AR26","v":0},null,null,null,null,null,null,{"$f":"IF(AD15=0,0,AD15-AK15-AR15)","v":0},null,null,null,null,null,null,null,null,null,null,null,null,-50000,-50000,null,null,null,null,null,2033,8]
[null,null,null,null,null,null,null,null,null,null,null,null,null,null,null,null,null,null,null,null,null,null,null,"請求金額計",null,null,null,null,null,{"$f":"SUM(AD14:AI15)","v":0},null,null,null,null,null,null,{"$f":"SUM(AK14:AP15)","v":0},null,null,null,null,null,null,{"$f":"AY26","v":0},null,null,null,null,null,null,{"$f":"IF(AD16=0,0,AD16-AK16-AR16)","v":0},null,null,null,null,null,null,null,null,null,null,null,0,-550000,-550000,null,null,null,null,null,2034,9]
[null,null,null,null,null,null,null,null,null,null,null,null,null,null,null,null,null,null,null,null,null,null,null,null,null,null,null,null,null,"※１　預り保留金",null,null,null,null,null,null,"前回迄の保留金",null,null,null,null,null,null,"今回保留金",null,null,null,null,null,null,"預り保留金累計",null,null,null,null,null,null,null,null,null,null,null,"前回迄の保留金","今回保留金","保留金累計",null,null,null,null,null,2035,10,null,null,null,null,null,null,null,{"$f":"IF(ISERROR(VLOOKUP($G$17,課税区分リスト,2,FALSE))=TRUE,0,(VLOOKUP($G$17,課税区分リスト,2,FALSE)))","v":0}]
[null,null,null,null,null,null,null,null,null,null,null,null,null,null,null,null,null,null,null,null,null,null,null,null,null,null,null,null,null,"保留率",null,null,null,null,null,null,null,null,null,null,null,null,null,{"$f":"IF(AH18=0,0,ROUND(AR16*AH18,0))","v":0},null,null,null,null,null,null,{"$f":"SUM(AK18,AR18)","v":0},null,null,null,null,null,null,null,null,null,null,null,null,-55000,{"$f":"SUM(BK18:BL18)","v":-55000},null,null,null,null,null,2036,11]
[null,null,null,null,null,null,null,null,null,null,null,null,null,null,null,null,null,null,null,null,null,null,null,null,null,null,null,null,null,"保留金解除金額",null,null,null,null,null,null,{"$f":"IF(AY16=0,AY18,0)","v":0},null,null,null,null,null,null,"今回支払金額",null,null,null,null,null,null,{"$f":"AR16-AR18+AK19","v":0},null,null,null,null,null,null,null,null,null,null,null,null,null,null,null,null,null,null,null,2037,12]
[null,null,null,null,null,null,null,null,null,null,null,null,null,null,null,null,null,null,null,null,null,null,null,null,null,null,null,null,null,"※１．預り保留金は最終請求の支払に合わせてお支払いたします。",null,null,null,null,null,null,null,null,null,null,null,null,null,null,null,null,null,null,null,null,null,null,null,null,null,null,null,null,null,null,null,null,null,"保留金解除",0,null,null,null,null,null,2038]
[null,null,null,null,null,null,null,null,null,null,null,null,null,null,null,null,null,null,null,null,null,null,null,null,null,null,null,null,null,"［今回請求額明細］　※適用税率毎に記載をお願い致します。",null,null,null,null,null,null,null,null,null,null,null,null,null,null,null,null,null,null,null,null,null,null,null,null,null,null,null,null,null,null,null,null,null,"前回まで保留金",-55000,null,null,null,null,null,2039]
[null,null,null,null,null,null,null,null,null,null,null,null,null,null,null,null,null,null,null,null,null,null,null,null,null,null,null,null,null,"消費税区分",null,null,null,null,null,null,"税抜",null,null,null,null,null,null,"消費税等",null,null,null,null,null,null,"税込",null,null,null,null,null,null,null,null,null,null,null,null,null,null,null,null,null,null,null,2040]
[null,null,null,null,null,null,null,null,null,null,null,null,null,null,null,null,null,null,null,null,null,null,null,null,null,null,null,null,null,"10%対象",null,null,null,null,null,null,null,null,null,null,null,null,null,{"$f":"ROUNDDOWN(AK23*0.1,0)","v":0},null,null,null,null,null,null,{"$f":"AK23+AR23","v":0},null,null,null,null,null,null,null,null,null,null,null,null,null,null,null,null,null,null,null,2041]
[null,null,null,null,null,null,null,null,null,null,null,null,null,null,null,null,null,null,null,null,null,null,null,null,null,null,null,null,null,"軽減8%対象",null,null,null,null,null,null,null,null,null,null,null,null,null,{"$f":"ROUNDDOWN(AK24*0.08,0)","v":0},null,null,null,null,null,null,{"$f":"AK24+AR24","v":0},null,null,null,null,null,null,null,null,null,null,null,null,null,null,null,null,null,null,null,2042]
[null,null,null,null,null,null,null,null,null,null,null,null,null,null,null,null,null,null,null,null,null,null,null,null,null,null,null,null,null,"対象外",null,null,null,null,null,null,null,null,null,null,null,null,null,0,null,null,null,null,null,null,{"$f":"AK25+AR25","v":0},null,null,null,null,null,null,null,null,null,null,null,null,null,null,null,null,null,null,null,2043]
[null,null,null,null,null,null,null,null,null,null,null,null,null,null,null,null,null,null,null,null,null,null,null,null,null,null,null,null,null,"計",null,null,null,null,null,null,{"$f":"SUM(AK23:AQ25)","v":0},null,null,null,null,null,null,{"$f":"SUM(AR23:AX24)","v":0},null,null,null,null,null,null,{"$f":"SUM(AY23:BE25)","v":0},null,null,null,null,null,null,null,null,null,null,null,null,null,null,null,null,null,null,null,2044]
[null,null,null,null,null,null,null,null,null,null,null,null,null,null,null,null,null,null,null,null,null,null,null,null,null,null,null,null,null,null,null,null,null,null,null,null,null,null,null,null,null,null,null,null,null,null,null,null,null,null,null,null,null,null,null,null,null,null,null,null,null,null,null,null,null,null,null,null,null,null,2045]
[null,null,null,null,null,null,null,null,null,null,null,null,null,null,null,null,null,null,null,null,null,null,null,null,null,null,null,null,null,null,null,null,null,null,null,null,null,null,null,null,null,null,null,null,null,null,null,null,null,null,null,null,null,null,null,null,null,null,null,null,null,null,null,null,null,null,null,null,null,null,2046]
[null,null,null,null,null,null,null,null,null,null,null,null,null,null,null,null,null,null,null,null,null,null,null,null,null,null,null,null,null,null,null,null,null,null,null,null,null,null,null,null,null,null,null,null,null,null,null,null,null,null,null,null,null,null,null,null,null,null,null,null,null,null,null,null,null,null,null,null,null,null,2047]
[null,null,null,null,null,null,null,null,null,null,null,null,null,null,null,null,null,null,null,null,null,null,null,null,null,null,null,null,null,null,null,null,null,null,null,null,null,null,null,null,null,null,null,null,null,null,null,null,null,null,null,null,null,null,null,null,null,null,null,null,null,null,null,null,null,null,null,null,null,null,2048]
[null,null,null,null,null,null,null,null,null,null,null,null,null,null,null,null,null,null,null,null,null,null,null,null,null,null,null,null,null,null,null,null,null,null,null,null,null,null,null,null,null,null,null,null,null,null,null,null,null,null,null,null,null,null,null,null,null,null,null,null,null,null,null,null,null,null,null,null,null,null,2049]
[null,null,null,null,null,null,null,null,null,null,null,null,null,null,null,null,null,null,null,null,null,null,null,null,null,null,null,null,null,null,null,null,null,null,null,null,null,null,null,null,null,null,null,null,null,null,null,null,null,null,null,null,null,null,null,null,null,null,null,null,null,null,null,null,null,null,null,null,null,null,2050]

{"sheet":"入力_明細合計表","index":2,"n_rows":29,"n_cols":15,"rows_kept":29,"cut":false,"hidden":false,"merged":[[3,14,4,14],[27,1,28,17],[1,0,1,4],[1,6,1,8],[1,10,1,14],[3,1,4,1],[3,2,3,5],[3,6,3,7],[3,8,3,9],[3,10,3,11],[3,12,3,13]]}
[null,null,null,null,null,"請　求　明　細　合　計　表"]
[{"$f":"\"工事件名　\"&請求書!G7","v":"工事件名　"},null,null,null,null,null,{"$f":"請求書!G5&\" 年　\"&請求書!J5&\" 月分\"","v":" 年　 月分"},null,null,null,{"$f":"\"会社名　\"&請求書!AB5","v":"会社名　"}]
[]
["工種・品名","税区分","契約",null,null,null,"前回迄出来高・請求",null,"今回出来高・請求",null,"累計出来高・請求",null,"契約残",null,"進捗率"]
["（形状・寸法等）",null,"数量","単位","単価","金額","数量","金額","数量","金額","数量","金額","数量","金額"]
[null,null,null,null,null,null,null,null,null,null,null,{"$f":"H6+J6","v":0},null,{"$f":"IF(F6=\"\",0,F6-L6)","v":0}]
[null,null,null,null,null,null,null,null,null,null,null,0,null,{"$f":"IF(F7=\"\",0,F7-L7)","v":0}]
[null,null,null,null,null,null,null,null,null,null,null,0,null,0]
[null,null,null,null,null,null,null,null,null,null,null,0,null,0]
[null,null,null,null,null,null,null,null,null,null,null,0,null,0]
[null,null,null,null,null,null,null,null,null,null,null,0,null,0]
[null,null,null,null,null,null,null,null,null,null,null,0,null,0]
[null,null,null,null,null,null,null,null,null,null,null,0,null,0]
[null,null,null,null,null,null,null,null,null,null,null,0,null,0]
[null,null,null,null,null,null,null,null,null,null,null,0,null,0]
[null,null,null,null,null,null,null,null,null,null,null,0,null,0]
[null,null,null,null,null,null,null,null,null,null,null,0,null,0]
[null,null,null,null,null,null,null,null,null,null,null,0,null,0]
[null,null,null,null,null,null,null,null,null,null,null,0,null,0]
[null,null,null,null,null,null,null,null,null,null,null,0,null,0]
[null,null,null,null,null,null,null,null,null,null,null,0,null,0]
[null,null,null,null,null,null,null,null,null,null,null,0,null,0]
[null,null,null,null,null,null,null,null,null,null,null,0,null,0]
[null,null,null,null,null,null,null,null,null,null,null,0,null,0]
[null,null,null,null,null,null,null,null,null,null,null,0,null,0]
[null,null,null,null,null,null,null,null,null,null,null,0,null,0]
["税　　抜　　計",null,null,null,null,{"$f":"SUM(F6:F26)","v":0},null,{"$f":"SUM(H6:H26)","v":0},null,{"$f":"SUM(J6:J26)","v":0},null,{"$f":"SUM(L6:L26)","v":0},null,{"$f":"SUM(N6:N26)","v":0}]
[null,{"$f":"IF(OR(\nAND(入力_請求書!AD14<>\"\",入力_明細合計表!F27<>\"\",入力_請求書!AD14<>入力_明細合計表!F27),\nAND(入力_請求書!AK14<>\"\",入力_明細合計表!H27<>\"\",入力_請求書!AK14<>入力_明細合計表!H27),\nAND(入力_請求書!AR14<>\"\",入力_明細合計表!J27<>\"\",入力_請求書!AR14<>入力_明細合計表!J27),\nAND(入力_請求書!AY14<>\"\",入力_明細合計表!N27<>\"\",入力_請求書!AY14<>入力_明細合計表!N27)\n),\"不一致があります。請求書税抜と一致させてください\",\"\")","v":""}]
["西武建設株式会社"]

{"sheet":"請求書","index":3,"n_rows":53,"n_cols":68,"rows_kept":53,"cut":false,"hidden":false,"merged":[[49,4,49,13],[52,1,52,3],[22,18,22,26],[48,1,48,26],[49,1,49,3],[23,14,23,17],[23,18,23,26],[38,13,38,16],[38,2,38,6],[38,7,38,9],[49,14,49,17],[49,18,49,26],[50,1,50,3],[50,4,50,13],[23,4,23,13],[51,1,51,3],[51,4,51,26],[45,2,45,10],[50,14,50,17],[50,18,50,26],[39,2,39,10],[39,24,39,28],[39,19,39,23],[38,19,38,28],[37,19,37,28],[25,1,25,3],[37,2,37,6],[37,7,37,18],[39,11,39,13],[39,14,39,18],[38,10,38,12],[19,13,19,17],[19,18,19,22],[19,23,19,27],[24,4,24,26],[19,1,19,9],[19,10,19,12],[23,1,23,3],[24,1,24,3],[14,23,14,28],[13,1,13,5],[15,23,15,28],[18,18,18,27],[18,12,18,15],[16,29,16,35],[11,1,12,5],[25,29,25,35],[18,1,18,5],[18,29,18,35],[22,29,22,35],[23,29,23,35],[15,29,15,35],[14,29,14,35],[17,29,17,32],[18,6,18,8],[18,9,18,11],[9,1,9,5],[9,6,9,21],[13,23,13,28],[10,23,10,28],[10,1,10,5],[10,6,10,21],[9,23,9,28],[5,1,5,5],[4,23,5,26],[4,1,4,5],[4,6,4,8],[5,6,5,21],[6,1,7,5],[4,9,4,10],[4,11,4,12],[8,1,8,5],[6,6,7,21],[8,23,8,26],[8,6,8,21],[4,27,5,56],[12,23,12,28],[11,23,11,28],[11,6,12,21],[13,6,13,7],[8,47,8,50],[8,36,8,39],[9,36,9,42],[10,36,10,42],[10,50,10,56],[9,43,9,49],[10,43,10,49],[6,23,6,26],[7,23,7,26],[9,50,9,56],[9,29,9,35],[10,29,10,35],[8,51,8,56],[6,27,6,56],[7,27,7,56],[8,40,8,46],[8,28,8,35],[16,36,16,42],[13,50,13,56],[16,50,16,56],[15,50,15,56],[24,36,24,42],[24,43,24,49],[24,50,24,56],[17,33,17,35],[17,36,17,42],[17,50,17,56],[21,29,21,35],[17,43,17,49],[14,50,14,56],[16,43,16,49],[15,43,15,49],[22,36,22,42],[18,50,18,56],[15,36,15,42],[18,36,18,42],[14,36,14,42],[23,43,23,49],[22,43,22,49],[14,43,14,49],[18,43,18,49],[11,36,11,42],[13,36,13,42],[13,29,13,35],[12,36,12,42],[12,29,12,35],[11,29,11,35],[11,50,11,56],[11,43,11,49],[13,43,13,49],[12,50,12,56],[12,43,12,49],[22,50,22,56],[23,36,23,42],[24,29,24,35],[23,50,23,56],[25,50,25,56],[21,36,21,42],[21,43,21,49],[21,50,21,56],[25,36,25,42],[25,43,25,49]]}
[]
[null,null,null,null,null,null,null,null,null,null,null,null,null,null,null,null,null,null,null,null,null,null,null,null,null,null,null,null,null,null,null,null,null,null,null,null,null,null,null,null,null,null,null,null,null,null,null,null,null,{"$f":"IF(AC9=\"\",\"★\",\"\")","v":"★"}]
[]
[]
[null,"請求年月",null,null,null,null,{"$f":"IF(入力_請求書!G5=\"\",\"\",入力_請求書!G5)","v":""},null,null,{"$f":"IF(入力_請求書!J5=\"\",\"\",入力_請求書!J5)","v":""},null,{"$f":"EOMONTH(DATE(G5, J5, 1), 0)","v":{"$error":"#VALUE!"}},null,null,null,null,null,null,null,null,null,null,null,"会社名",null,null,null,{"$f":"IF(入力_請求書!AB5=\"\",\"\",入力_請求書!AB5)","v":""},null,null,null,null,null,null,null,null,null,null,null,null,null,null,null,null,null,null,null,null,null,null,null,null,null,null,null,null,null,null,null,null,null,null,null,null,null,null,2025,1]
[null,"工事(物件)コード",null,null,null,null,{"$f":"IF(入力_請求書!G6=\"\",\"\",入力_請求書!G6)","v":""},null,null,null,null,null,null,null,null,null,null,null,null,null,null,null,null,null,null,null,null,null,null,null,null,null,null,null,null,null,null,null,null,null,null,null,null,null,null,null,null,null,null,null,null,null,null,null,null,null,null,null,null,null,null,null,null,null,null,null,2026,2]
[null,"工事件名又は\n担当部署名",null,null,null,null,{"$f":"IF(入力_請求書!G7=\"\",\"\",入力_請求書!G7)","v":""},null,null,null,null,null,null,null,null,null,null,null,null,null,null,null,null,"住所",null,null,null,{"$f":"IF(入力_請求書!AB7=\"\",\"\",入力_請求書!AB7)","v":""},null,null,null,null,null,null,null,null,null,null,null,null,null,null,null,null,null,null,null,null,null,null,null,null,null,null,null,null,null,null,null,null,null,null,null,null,null,null,2027,3]
[null,null,null,null,null,null,null,null,null,null,null,null,null,null,null,null,null,null,null,null,null,null,null,"メールアドレス",null,null,null,{"$f":"IF(入力_請求書!AB8=\"\",\"\",入力_請求書!AB8)","v":""},null,null,null,null,null,null,null,null,null,null,null,null,null,null,null,null,null,null,null,null,null,null,null,null,null,null,null,null,null,null,null,null,null,null,null,null,null,null,2028,4]
[null,"取引先コード",null,null,null,null,{"$f":"IF(入力_請求書!G9=\"\",\"\",入力_請求書!G9)","v":""},null,null,null,null,null,null,null,null,null,null,null,null,null,null,null,null,"登録番号",null,null,null,{"$f":"IF(入力_請求書!AB9=\"\",\"\",入力_請求書!AB9)","v":"T"},{"$f":"IF(入力_請求書!AC9=\"\",\"\",入力_請求書!AC9)","v":""},null,null,null,null,null,null,null,"担当者",null,null,null,{"$f":"IF(入力_請求書!AO9=\"\",\"\",入力_請求書!AO9)","v":""},null,null,null,null,null,null,"電話番号",null,null,null,{"$f":"IF(入力_請求書!AZ9=\"\",\"\",入力_請求書!AZ9)","v":""},null,null,null,null,null,null,null,null,null,null,null,null,null,null,2029,5]
[null,"注文書番号",null,null,null,null,{"$f":"IF(入力_請求書!G10=\"\",\"\",入力_請求書!G10)","v":""},null,null,null,null,null,null,null,null,null,null,null,null,null,null,null,null,"項目",null,null,null,null,null,"契約金額",null,null,null,null,null,null,"既請求金額",null,null,null,null,null,null,"今回請求額",null,null,null,null,null,null,"残金額",null,null,null,null,null,null,null,null,null,null,null,null,null,null,null,2030,6]
[null,"請求書番号",null,null,null,null,{"$f":"IF(入力_請求書!G11=\"\",\"\",入力_請求書!G11)","v":""},null,null,null,null,null,null,null,null,null,null,null,null,null,null,null,null,"契約金額",null,null,null,null,null,{"$f":"IF(入力_請求書!AD11=\"\",\"\",入力_請求書!AD11)","v":""},null,null,null,null,null,null,{"$f":"IF(入力_請求書!AK11=\"\",\"\",入力_請求書!AK11)","v":""},null,null,null,null,null,null,{"$f":"IF(入力_請求書!AR11=\"\",\"\",入力_請求書!AR11)","v":""},null,null,null,null,null,null,{"$f":"IF(入力_請求書!AY11=\"\",\"\",入力_請求書!AY11)","v":0},null,null,null,null,null,null,null,null,null,null,null,null,null,null,null,2031,7]
[null,"請求内容",null,null,null,null,{"$f":"IF(入力_請求書!G12=\"\",\"\",入力_請求書!G12)","v":""},null,null,null,null,null,null,null,null,null,null,null,null,null,null,null,null,"変更増額",null,null,null,null,null,{"$f":"IF(入力_請求書!AD12=\"\",\"\",入力_請求書!AD12)","v":""},null,null,null,null,null,null,{"$f":"IF(入力_請求書!AK12=\"\",\"\",入力_請求書!AK12)","v":""},null,null,null,null,null,null,{"$f":"IF(入力_請求書!AR12=\"\",\"\",入力_請求書!AR12)","v":""},null,null,null,null,null,null,{"$f":"IF(入力_請求書!AY12=\"\",\"\",入力_請求書!AY12)","v":0},null,null,null,null,null,null,null,null,null,null,null,null,null,null,null,2032,8]
[null,null,null,null,null,null,null,null,null,null,null,null,null,null,null,null,null,null,null,null,null,null,null,"変更減額",null,null,null,null,null,{"$f":"IF(入力_請求書!AD13=\"\",\"\",入力_請求書!AD13)","v":""},null,null,null,null,null,null,{"$f":"IF(入力_請求書!AK13=\"\",\"\",入力_請求書!AK13)","v":""},null,null,null,null,null,null,{"$f":"IF(入力_請求書!AR13=\"\",\"\",入力_請求書!AR13)","v":""},null,null,null,null,null,null,{"$f":"IF(入力_請求書!AY13=\"\",\"\",入力_請求書!AY13)","v":0},null,null,null,null,null,null,null,null,null,null,null,null,null,null,null,2033,9]
[null,"支払サイト",null,null,null,null,{"$f":"IF(入力_請求書!G14=\"\",\"\",入力_請求書!G14)","v":""},null,"日",null,null,null,null,null,null,null,null,null,null,null,null,null,null,{"$f":"IF(G17<>\"課税仕入５％内税\",\"税抜計\",\"税込計\")","v":"税抜計"},null,null,null,null,null,{"$f":"IF(入力_請求書!AD14=\"\",\"\",入力_請求書!AD14)","v":0},null,null,null,null,null,null,{"$f":"IF(入力_請求書!AK14=\"\",\"\",入力_請求書!AK14)","v":0},null,null,null,null,null,null,{"$f":"IF(入力_請求書!AR14=\"\",\"\",入力_請求書!AR14)","v":0},null,null,null,null,null,null,{"$f":"IF(入力_請求書!AY14=\"\",\"\",入力_請求書!AY14)","v":0},null,null,null,null,null,null,null,null,null,null,null,null,null,null,null,2034,10]
[null,null,null,null,null,null,null,null,null,null,null,null,null,null,null,null,null,null,null,null,null,null,null,{"$f":"IF($G$17<>\"課税仕入５％内税\",\"消費税等\",\"仕入控除税額\")","v":"消費税等"},null,null,null,null,null,{"$f":"IF(入力_請求書!AD15=\"\",\"\",入力_請求書!AD15)","v":0},null,null,null,null,null,null,{"$f":"IF(入力_請求書!AK15=\"\",\"\",入力_請求書!AK15)","v":""},null,null,null,null,null,null,{"$f":"IF(入力_請求書!AR15=\"\",\"\",入力_請求書!AR15)","v":0},null,null,null,null,null,null,{"$f":"IF(入力_請求書!AY15=\"\",\"\",入力_請求書!AY15)","v":0},null,null,null,null,null,null,null,null,null,null,null,null,null,null,null,2035,11]
[null,null,null,null,null,null,null,null,null,null,null,null,null,null,null,null,null,null,null,null,null,null,null,"請求金額計",null,null,null,null,null,{"$f":"IF(入力_請求書!AD16=\"\",\"\",入力_請求書!AD16)","v":0},null,null,null,null,null,null,{"$f":"IF(入力_請求書!AK16=\"\",\"\",入力_請求書!AK16)","v":0},null,null,null,null,null,null,{"$f":"IF(入力_請求書!AR16=\"\",\"\",入力_請求書!AR16)","v":0},null,null,null,null,null,null,{"$f":"IF(入力_請求書!AY16=\"\",\"\",入力_請求書!AY16)","v":0},null,null,null,null,null,null,null,null,null,null,null,null,null,null,null,2036,12]
[null,null,null,null,null,null,{"$f":"IF(入力_請求書!G17=\"\",\"\",入力_請求書!G17)","v":""},null,null,null,null,null,null,null,null,null,null,null,null,null,null,null,null,null,null,null,null,null,null,"※１　預り保留金",null,null,null,null,null,null,"前回迄の保留金",null,null,null,null,null,null,"今回保留金",null,null,null,null,null,null,"預り保留金累計",null,null,null,null,null,null,null,null,null,null,null,null,null,null,null,2037]
[null,null,null,null,null,null,null,null,null,null,null,null,null,null,null,null,null,null,null,null,null,null,null,null,null,null,null,null,null,"保留率",null,null,null,{"$f":"IF(入力_請求書!AH18=\"\",\"\",入力_請求書!AH18)","v":""},null,null,{"$f":"IF(入力_請求書!AK18=\"\",\"\",入力_請求書!AK18)","v":""},null,null,null,null,null,null,{"$f":"IF(入力_請求書!AR18=\"\",\"\",入力_請求書!AR18)","v":0},null,null,null,null,null,null,{"$f":"IF(入力_請求書!AY18=\"\",\"\",入力_請求書!AY18)","v":0},null,null,null,null,null,null,null,null,null,null,null,null,null,null,null,2038]
[null,null,null,null,null,null,null,null,null,null,null,null,null,null,null,null,null,null,null,null,null,null,null,null,null,null,null,null,null,"保留金解除金額",null,null,null,null,null,null,{"$f":"IF(入力_請求書!AK19=\"\",\"\",入力_請求書!AK19)","v":0},null,null,null,null,null,null,"今回支払金額",null,null,null,null,null,null,{"$f":"IF(入力_請求書!AY19=\"\",\"\",入力_請求書!AY19)","v":0},null,null,null,null,null,null,null,null,null,null,null,null,null,null,null,2039]
[null,null,null,null,null,null,null,null,null,null,null,null,null,null,null,null,null,null,null,null,null,null,null,null,null,null,null,null,null,"※１．預り保留金は最終請求の支払に合わせてお支払いたします。",null,null,null,null,null,null,null,null,null,null,null,null,null,null,null,null,null,null,null,null,null,null,null,null,null,null,null,null,null,null,null,null,null,null,null,null,2040]
[null,null,null,null,null,null,null,null,null,null,null,null,null,null,null,null,null,null,null,null,null,null,null,null,null,null,null,null,null,"［今回請求額明細］　※適用税率毎に記載をお願い致します。",null,null,null,null,null,null,null,null,null,null,null,null,null,null,null,null,null,null,null,null,null,null,null,null,null,null,null,null,null,null,null,null,null,null,null,null,2041]
[null,null,null,null,null,null,null,null,null,null,null,null,null,null,null,null,null,null,null,null,null,null,null,null,null,null,null,null,null,"消費税区分",null,null,null,null,null,null,"税抜",null,null,null,null,null,null,"消費税等",null,null,null,null,null,null,"税込",null,null,null,null,null,null,null,null,null,null,null,null,null,null,null,2042]
[null,null,null,null,null,null,null,null,null,null,null,null,null,null,null,null,null,null,null,null,null,null,null,null,null,null,null,null,null,"10%対象",null,null,null,null,null,null,{"$f":"IF(入力_請求書!AK23=\"\",\"\",入力_請求書!AK23)","v":""},null,null,null,null,null,null,{"$f":"IF(入力_請求書!AR23=\"\",\"\",入力_請求書!AR23)","v":0},null,null,null,null,null,null,{"$f":"IF(入力_請求書!AY23=\"\",\"\",入力_請求書!AY23)","v":0},null,null,null,null,null,null,null,null,null,null,null,null,null,null,null,2043]
[null,null,null,null,null,null,null,null,null,null,null,null,null,null,null,null,null,null,null,null,null,null,null,null,null,null,null,null,null,"軽減8%対象",null,null,null,null,null,null,{"$f":"IF(入力_請求書!AK24=\"\",\"\",入力_請求書!AK24)","v":""},null,null,null,null,null,null,{"$f":"IF(入力_請求書!AR24=\"\",\"\",入力_請求書!AR24)","v":0},null,null,null,null,null,null,{"$f":"IF(入力_請求書!AY24=\"\",\"\",入力_請求書!AY24)","v":0},null,null,null,null,null,null,null,null,null,null,null,null,null,null,null,2044]
[null,null,null,null,null,null,null,null,null,null,null,null,null,null,null,null,null,null,null,null,null,null,null,null,null,null,null,null,null,"対象外",null,null,null,null,null,null,{"$f":"IF(入力_請求書!AK25=\"\",\"\",入力_請求書!AK25)","v":""},null,null,null,null,null,null,{"$f":"IF(入力_請求書!AR25=\"\",\"\",入力_請求書!AR25)","v":0},null,null,null,null,null,null,{"$f":"IF(入力_請求書!AY25=\"\",\"\",入力_請求書!AY25)","v":0},null,null,null,null,null,null,null,null,null,null,null,null,null,null,null,2045]
[null,null,null,null,null,null,null,null,null,null,null,null,null,null,null,null,null,null,null,null,null,null,null,null,null,null,null,null,null,"計",null,null,null,null,null,null,{"$f":"IF(入力_請求書!AK26=\"\",\"\",入力_請求書!AK26)","v":0},null,null,null,null,null,null,{"$f":"IF(入力_請求書!AR26=\"\",\"\",入力_請求書!AR26)","v":0},null,null,null,null,null,null,{"$f":"IF(入力_請求書!AY26=\"\",\"\",入力_請求書!AY26)","v":0},null,null,null,null,null,null,null,null,null,null,null,null,null,null,null,2046]
[null,"電子データで提出した場合は、登録済口座にお支払い致します。",null,null,null,null,null,null,null,null,null,null,null,null,null,null,null,null,null,null,null,null,null,null,null,null,null,null,null,null,null,null,null,null,null,null,null,null,null,null,null,null,null,null,null,null,null,null,null,null,null,null,null,null,null,null,null,null,null,null,null,null,null,null,null,null,2047]
[null,"権利義務の譲渡について"]
[null,"（１）注文者または請負者は、この契約により生ずる権利または義務を第三者に譲渡し、または承継させない。ただし、相手方の書面による承継を得た場合は、この限りでない。"]
[null,"（２）注文者または請負者は、工事目的物または工事現場に搬入した工事材料（工場製品を含む。以下同じ）を第三者に譲渡し、貸与し、または抵当権その他の担保の目的に供しない。"]
[null,"　　　ただし、相手方の書面による承継を得た場合は、この限りでない。"]
[]
[null,null,null,null,null,null,null,null,null,null,null,null,null,null,null,null,null,null,null,null,null,null,null,null,null,null,null,null,null,null,null,null,null,null,null,null,null,null,null,null,null,null,null,null,null,null,null,null,null,null,null,"20260501改訂"]
[]
[]
[]
[]
[null,null,"種類",null,null,null,null,"工事原価 ・ 部　門 ・ 物　件",null,null,null,null,null,null,null,null,null,null,null,"支払予定日"]
[null,null,"工事区分",null,null,null,null,"自社",null,null,"ＪＶ",null,null,"完成未払",null,null,null,null,null,"　　　年　　　月　　　日"]
[null,null,"工種・科目",null,null,null,null,null,null,null,null,"税区",null,null,"請求税抜",null,null,null,null,"消費税等",null,null,null,null,"請求税込"]
[]
[]
[]
[]
[]
[null,null,"計"]
[]
[]
[null,"振　込　先　※振込先の手書き修正は不可といたします。再度発行してください。"]
[null,"金融機関",null,null,{"$f":"IF(入力_請求書!E53=\"\",\"\",入力_請求書!E53)","v":""},null,null,null,null,null,null,null,null,null,"支店名",null,null,null,{"$f":"IF(入力_請求書!S53=\"\",\"\",入力_請求書!S53)","v":""}]
[null,"預金種別",null,null,{"$f":"IF(入力_請求書!E54=\"\",\"\",入力_請求書!E54)","v":""},null,null,null,null,null,null,null,null,null,"口座番号",null,null,null,{"$f":"IF(入力_請求書!S54=\"\",\"\",入力_請求書!S54)","v":""}]
[null,"口座名義　　　　　　　　　　　　　　　　　　　　　　　　　　　　　　　　　　　　　　　　　　　　　　　　　　　　　　　　　　　　　　　　　　　　　　　　　　　　　　　　（漢字）",null,null,{"$f":"IF(入力_請求書!E55=\"\",\"\",入力_請求書!E55)","v":""}]
[null,"口座名義　　　　　　　　　　　　　　　　　　　　　　　　　　　　　　　　　　　　　　　　　　　　　　　　　　　　　　　　　　　　　　　　　　　　　　　　　　　　　　　　（カナ）",null,null,{"$f":"IF(入力_請求書!E56=\"\",\"\",入力_請求書!E56)","v":""}]

{"sheet":"明細合計表","index":4,"n_rows":29,"n_cols":15,"rows_kept":29,"cut":false,"hidden":false,"merged":[[27,1,28,17],[3,6,3,7],[3,8,3,9],[3,10,3,11],[3,12,3,13],[3,14,4,14],[1,0,1,4],[1,6,1,8],[1,10,1,14],[3,1,4,1],[3,2,3,5]]}
[null,null,null,null,null,"請　求　明　細　合　計　表"]
[{"$f":"\"工事件名　\"&請求書!G7","v":"工事件名　"},null,null,null,null,null,{"$f":"請求書!G5&\" 年　\"&請求書!J5&\" 月分\"","v":" 年　 月分"},null,null,null,{"$f":"\"会社名　\"&請求書!AB5","v":"会社名　"}]
[]
["工種・品名","税区分","契約",null,null,null,"前回迄出来高・請求",null,"今回出来高・請求",null,"累計出来高・請求",null,"契約残",null,"進捗率"]
["（形状・寸法等）",null,"数量","単位","単価","金額","数量","金額","数量","金額","数量","金額","数量","金額"]
[{"$f":"IF(入力_明細合計表!A6=\"\",\"\",入力_明細合計表!A6)","v":""},{"$f":"IF(入力_明細合計表!B6=\"\",\"\",入力_明細合計表!B6)","v":""},{"$f":"IF(入力_明細合計表!C6=\"\",\"\",入力_明細合計表!C6)","v":""},{"$f":"IF(入力_明細合計表!D6=\"\",\"\",入力_明細合計表!D6)","v":""},{"$f":"IF(入力_明細合計表!E6=\"\",\"\",入力_明細合計表!E6)","v":""},{"$f":"IF(入力_明細合計表!F6=\"\",\"\",入力_明細合計表!F6)","v":""},{"$f":"IF(入力_明細合計表!G6=\"\",\"\",入力_明細合計表!G6)","v":""},{"$f":"IF(入力_明細合計表!H6=\"\",\"\",入力_明細合計表!H6)","v":""},{"$f":"IF(入力_明細合計表!I6=\"\",\"\",入力_明細合計表!I6)","v":""},{"$f":"IF(入力_明細合計表!J6=\"\",\"\",入力_明細合計表!J6)","v":""},{"$f":"IF(入力_明細合計表!K6=\"\",\"\",入力_明細合計表!K6)","v":""},{"$f":"IF(入力_明細合計表!L6=\"\",\"\",入力_明細合計表!L6)","v":0},{"$f":"IF(入力_明細合計表!M6=\"\",\"\",入力_明細合計表!M6)","v":""},{"$f":"IF(入力_明細合計表!N6=\"\",\"\",入力_明細合計表!N6)","v":0},{"$f":"IF(入力_明細合計表!O6=\"\",\"\",入力_明細合計表!O6)","v":""}]
[{"$f":"IF(入力_明細合計表!A7=\"\",\"\",入力_明細合計表!A7)","v":""},{"$f":"IF(入力_明細合計表!B7=\"\",\"\",入力_明細合計表!B7)","v":""},{"$f":"IF(入力_明細合計表!C7=\"\",\"\",入力_明細合計表!C7)","v":""},{"$f":"IF(入力_明細合計表!D7=\"\",\"\",入力_明細合計表!D7)","v":""},{"$f":"IF(入力_明細合計表!E7=\"\",\"\",入力_明細合計表!E7)","v":""},{"$f":"IF(入力_明細合計表!F7=\"\",\"\",入力_明細合計表!F7)","v":""},{"$f":"IF(入力_明細合計表!G7=\"\",\"\",入力_明細合計表!G7)","v":""},{"$f":"IF(入力_明細合計表!H7=\"\",\"\",入力_明細合計表!H7)","v":""},{"$f":"IF(入力_明細合計表!I7=\"\",\"\",入力_明細合計表!I7)","v":""},{"$f":"IF(入力_明細合計表!J7=\"\",\"\",入力_明細合計表!J7)","v":""},{"$f":"IF(入力_明細合計表!K7=\"\",\"\",入力_明細合計表!K7)","v":""},{"$f":"IF(入力_明細合計表!L7=\"\",\"\",入力_明細合計表!L7)","v":0},{"$f":"IF(入力_明細合計表!M7=\"\",\"\",入力_明細合計表!M7)","v":""},{"$f":"IF(入力_明細合計表!N7=\"\",\"\",入力_明細合計表!N7)","v":0},{"$f":"IF(入力_明細合計表!O7=\"\",\"\",入力_明細合計表!O7)","v":""}]
[{"$f":"IF(入力_明細合計表!A8=\"\",\"\",入力_明細合計表!A8)","v":""},{"$f":"IF(入力_明細合計表!B8=\"\",\"\",入力_明細合計表!B8)","v":""},{"$f":"IF(入力_明細合計表!C8=\"\",\"\",入力_明細合計表!C8)","v":""},{"$f":"IF(入力_明細合計表!D8=\"\",\"\",入力_明細合計表!D8)","v":""},{"$f":"IF(入力_明細合計表!E8=\"\",\"\",入力_明細合計表!E8)","v":""},{"$f":"IF(入力_明細合計表!F8=\"\",\"\",入力_明細合計表!F8)","v":""},{"$f":"IF(入力_明細合計表!G8=\"\",\"\",入力_明細合計表!G8)","v":""},{"$f":"IF(入力_明細合計表!H8=\"\",\"\",入力_明細合計表!H8)","v":""},{"$f":"IF(入力_明細合計表!I8=\"\",\"\",入力_明細合計表!I8)","v":""},{"$f":"IF(入力_明細合計表!J8=\"\",\"\",入力_明細合計表!J8)","v":""},{"$f":"IF(入力_明細合計表!K8=\"\",\"\",入力_明細合計表!K8)","v":""},{"$f":"IF(入力_明細合計表!L8=\"\",\"\",入力_明細合計表!L8)","v":0},{"$f":"IF(入力_明細合計表!M8=\"\",\"\",入力_明細合計表!M8)","v":""},{"$f":"IF(入力_明細合計表!N8=\"\",\"\",入力_明細合計表!N8)","v":0},{"$f":"IF(入力_明細合計表!O8=\"\",\"\",入力_明細合計表!O8)","v":""}]
[{"$f":"IF(入力_明細合計表!A9=\"\",\"\",入力_明細合計表!A9)","v":""},{"$f":"IF(入力_明細合計表!B9=\"\",\"\",入力_明細合計表!B9)","v":""},{"$f":"IF(入力_明細合計表!C9=\"\",\"\",入力_明細合計表!C9)","v":""},{"$f":"IF(入力_明細合計表!D9=\"\",\"\",入力_明細合計表!D9)","v":""},{"$f":"IF(入力_明細合計表!E9=\"\",\"\",入力_明細合計表!E9)","v":""},{"$f":"IF(入力_明細合計表!F9=\"\",\"\",入力_明細合計表!F9)","v":""},{"$f":"IF(入力_明細合計表!G9=\"\",\"\",入力_明細合計表!G9)","v":""},{"$f":"IF(入力_明細合計表!H9=\"\",\"\",入力_明細合計表!H9)","v":""},{"$f":"IF(入力_明細合計表!I9=\"\",\"\",入力_明細合計表!I9)","v":""},{"$f":"IF(入力_明細合計表!J9=\"\",\"\",入力_明細合計表!J9)","v":""},{"$f":"IF(入力_明細合計表!K9=\"\",\"\",入力_明細合計表!K9)","v":""},{"$f":"IF(入力_明細合計表!L9=\"\",\"\",入力_明細合計表!L9)","v":0},{"$f":"IF(入力_明細合計表!M9=\"\",\"\",入力_明細合計表!M9)","v":""},{"$f":"IF(入力_明細合計表!N9=\"\",\"\",入力_明細合計表!N9)","v":0},{"$f":"IF(入力_明細合計表!O9=\"\",\"\",入力_明細合計表!O9)","v":""}]
[{"$f":"IF(入力_明細合計表!A10=\"\",\"\",入力_明細合計表!A10)","v":""},{"$f":"IF(入力_明細合計表!B10=\"\",\"\",入力_明細合計表!B10)","v":""},{"$f":"IF(入力_明細合計表!C10=\"\",\"\",入力_明細合計表!C10)","v":""},{"$f":"IF(入力_明細合計表!D10=\"\",\"\",入力_明細合計表!D10)","v":""},{"$f":"IF(入力_明細合計表!E10=\"\",\"\",入力_明細合計表!E10)","v":""},{"$f":"IF(入力_明細合計表!F10=\"\",\"\",入力_明細合計表!F10)","v":""},{"$f":"IF(入力_明細合計表!G10=\"\",\"\",入力_明細合計表!G10)","v":""},{"$f":"IF(入力_明細合計表!H10=\"\",\"\",入力_明細合計表!H10)","v":""},{"$f":"IF(入力_明細合計表!I10=\"\",\"\",入力_明細合計表!I10)","v":""},{"$f":"IF(入力_明細合計表!J10=\"\",\"\",入力_明細合計表!J10)","v":""},{"$f":"IF(入力_明細合計表!K10=\"\",\"\",入力_明細合計表!K10)","v":""},{"$f":"IF(入力_明細合計表!L10=\"\",\"\",入力_明細合計表!L10)","v":0},{"$f":"IF(入力_明細合計表!M10=\"\",\"\",入力_明細合計表!M10)","v":""},{"$f":"IF(入力_明細合計表!N10=\"\",\"\",入力_明細合計表!N10)","v":0},{"$f":"IF(入力_明細合計表!O10=\"\",\"\",入力_明細合計表!O10)","v":""}]
[{"$f":"IF(入力_明細合計表!A11=\"\",\"\",入力_明細合計表!A11)","v":""},{"$f":"IF(入力_明細合計表!B11=\"\",\"\",入力_明細合計表!B11)","v":""},{"$f":"IF(入力_明細合計表!C11=\"\",\"\",入力_明細合計表!C11)","v":""},{"$f":"IF(入力_明細合計表!D11=\"\",\"\",入力_明細合計表!D11)","v":""},{"$f":"IF(入力_明細合計表!E11=\"\",\"\",入力_明細合計表!E11)","v":""},{"$f":"IF(入力_明細合計表!F11=\"\",\"\",入力_明細合計表!F11)","v":""},{"$f":"IF(入力_明細合計表!G11=\"\",\"\",入力_明細合計表!G11)","v":""},{"$f":"IF(入力_明細合計表!H11=\"\",\"\",入力_明細合計表!H11)","v":""},{"$f":"IF(入力_明細合計表!I11=\"\",\"\",入力_明細合計表!I11)","v":""},{"$f":"IF(入力_明細合計表!J11=\"\",\"\",入力_明細合計表!J11)","v":""},{"$f":"IF(入力_明細合計表!K11=\"\",\"\",入力_明細合計表!K11)","v":""},{"$f":"IF(入力_明細合計表!L11=\"\",\"\",入力_明細合計表!L11)","v":0},{"$f":"IF(入力_明細合計表!M11=\"\",\"\",入力_明細合計表!M11)","v":""},{"$f":"IF(入力_明細合計表!N11=\"\",\"\",入力_明細合計表!N11)","v":0},{"$f":"IF(入力_明細合計表!O11=\"\",\"\",入力_明細合計表!O11)","v":""}]
[{"$f":"IF(入力_明細合計表!A12=\"\",\"\",入力_明細合計表!A12)","v":""},{"$f":"IF(入力_明細合計表!B12=\"\",\"\",入力_明細合計表!B12)","v":""},{"$f":"IF(入力_明細合計表!C12=\"\",\"\",入力_明細合計表!C12)","v":""},{"$f":"IF(入力_明細合計表!D12=\"\",\"\",入力_明細合計表!D12)","v":""},{"$f":"IF(入力_明細合計表!E12=\"\",\"\",入力_明細合計表!E12)","v":""},{"$f":"IF(入力_明細合計表!F12=\"\",\"\",入力_明細合計表!F12)","v":""},{"$f":"IF(入力_明細合計表!G12=\"\",\"\",入力_明細合計表!G12)","v":""},{"$f":"IF(入力_明細合計表!H12=\"\",\"\",入力_明細合計表!H12)","v":""},{"$f":"IF(入力_明細合計表!I12=\"\",\"\",入力_明細合計表!I12)","v":""},{"$f":"IF(入力_明細合計表!J12=\"\",\"\",入力_明細合計表!J12)","v":""},{"$f":"IF(入力_明細合計表!K12=\"\",\"\",入力_明細合計表!K12)","v":""},{"$f":"IF(入力_明細合計表!L12=\"\",\"\",入力_明細合計表!L12)","v":0},{"$f":"IF(入力_明細合計表!M12=\"\",\"\",入力_明細合計表!M12)","v":""},{"$f":"IF(入力_明細合計表!N12=\"\",\"\",入力_明細合計表!N12)","v":0},{"$f":"IF(入力_明細合計表!O12=\"\",\"\",入力_明細合計表!O12)","v":""}]
[{"$f":"IF(入力_明細合計表!A13=\"\",\"\",入力_明細合計表!A13)","v":""},{"$f":"IF(入力_明細合計表!B13=\"\",\"\",入力_明細合計表!B13)","v":""},{"$f":"IF(入力_明細合計表!C13=\"\",\"\",入力_明細合計表!C13)","v":""},{"$f":"IF(入力_明細合計表!D13=\"\",\"\",入力_明細合計表!D13)","v":""},{"$f":"IF(入力_明細合計表!E13=\"\",\"\",入力_明細合計表!E13)","v":""},{"$f":"IF(入力_明細合計表!F13=\"\",\"\",入力_明細合計表!F13)","v":""},{"$f":"IF(入力_明細合計表!G13=\"\",\"\",入力_明細合計表!G13)","v":""},{"$f":"IF(入力_明細合計表!H13=\"\",\"\",入力_明細合計表!H13)","v":""},{"$f":"IF(入力_明細合計表!I13=\"\",\"\",入力_明細合計表!I13)","v":""},{"$f":"IF(入力_明細合計表!J13=\"\",\"\",入力_明細合計表!J13)","v":""},{"$f":"IF(入力_明細合計表!K13=\"\",\"\",入力_明細合計表!K13)","v":""},{"$f":"IF(入力_明細合計表!L13=\"\",\"\",入力_明細合計表!L13)","v":0},{"$f":"IF(入力_明細合計表!M13=\"\",\"\",入力_明細合計表!M13)","v":""},{"$f":"IF(入力_明細合計表!N13=\"\",\"\",入力_明細合計表!N13)","v":0},{"$f":"IF(入力_明細合計表!O13=\"\",\"\",入力_明細合計表!O13)","v":""}]
[{"$f":"IF(入力_明細合計表!A14=\"\",\"\",入力_明細合計表!A14)","v":""},{"$f":"IF(入力_明細合計表!B14=\"\",\"\",入力_明細合計表!B14)","v":""},{"$f":"IF(入力_明細合計表!C14=\"\",\"\",入力_明細合計表!C14)","v":""},{"$f":"IF(入力_明細合計表!D14=\"\",\"\",入力_明細合計表!D14)","v":""},{"$f":"IF(入力_明細合計表!E14=\"\",\"\",入力_明細合計表!E14)","v":""},{"$f":"IF(入力_明細合計表!F14=\"\",\"\",入力_明細合計表!F14)","v":""},{"$f":"IF(入力_明細合計表!G14=\"\",\"\",入力_明細合計表!G14)","v":""},{"$f":"IF(入力_明細合計表!H14=\"\",\"\",入力_明細合計表!H14)","v":""},{"$f":"IF(入力_明細合計表!I14=\"\",\"\",入力_明細合計表!I14)","v":""},{"$f":"IF(入力_明細合計表!J14=\"\",\"\",入力_明細合計表!J14)","v":""},{"$f":"IF(入力_明細合計表!K14=\"\",\"\",入力_明細合計表!K14)","v":""},{"$f":"IF(入力_明細合計表!L14=\"\",\"\",入力_明細合計表!L14)","v":0},{"$f":"IF(入力_明細合計表!M14=\"\",\"\",入力_明細合計表!M14)","v":""},{"$f":"IF(入力_明細合計表!N14=\"\",\"\",入力_明細合計表!N14)","v":0},{"$f":"IF(入力_明細合計表!O14=\"\",\"\",入力_明細合計表!O14)","v":""}]
[{"$f":"IF(入力_明細合計表!A15=\"\",\"\",入力_明細合計表!A15)","v":""},{"$f":"IF(入力_明細合計表!B15=\"\",\"\",入力_明細合計表!B15)","v":""},{"$f":"IF(入力_明細合計表!C15=\"\",\"\",入力_明細合計表!C15)","v":""},{"$f":"IF(入力_明細合計表!D15=\"\",\"\",入力_明細合計表!D15)","v":""},{"$f":"IF(入力_明細合計表!E15=\"\",\"\",入力_明細合計表!E15)","v":""},{"$f":"IF(入力_明細合計表!F15=\"\",\"\",入力_明細合計表!F15)","v":""},{"$f":"IF(入力_明細合計表!G15=\"\",\"\",入力_明細合計表!G15)","v":""},{"$f":"IF(入力_明細合計表!H15=\"\",\"\",入力_明細合計表!H15)","v":""},{"$f":"IF(入力_明細合計表!I15=\"\",\"\",入力_明細合計表!I15)","v":""},{"$f":"IF(入力_明細合計表!J15=\"\",\"\",入力_明細合計表!J15)","v":""},{"$f":"IF(入力_明細合計表!K15=\"\",\"\",入力_明細合計表!K15)","v":""},{"$f":"IF(入力_明細合計表!L15=\"\",\"\",入力_明細合計表!L15)","v":0},{"$f":"IF(入力_明細合計表!M15=\"\",\"\",入力_明細合計表!M15)","v":""},{"$f":"IF(入力_明細合計表!N15=\"\",\"\",入力_明細合計表!N15)","v":0},{"$f":"IF(入力_明細合計表!O15=\"\",\"\",入力_明細合計表!O15)","v":""}]
[{"$f":"IF(入力_明細合計表!A16=\"\",\"\",入力_明細合計表!A16)","v":""},{"$f":"IF(入力_明細合計表!B16=\"\",\"\",入力_明細合計表!B16)","v":""},{"$f":"IF(入力_明細合計表!C16=\"\",\"\",入力_明細合計表!C16)","v":""},{"$f":"IF(入力_明細合計表!D16=\"\",\"\",入力_明細合計表!D16)","v":""},{"$f":"IF(入力_明細合計表!E16=\"\",\"\",入力_明細合計表!E16)","v":""},{"$f":"IF(入力_明細合計表!F16=\"\",\"\",入力_明細合計表!F16)","v":""},{"$f":"IF(入力_明細合計表!G16=\"\",\"\",入力_明細合計表!G16)","v":""},{"$f":"IF(入力_明細合計表!H16=\"\",\"\",入力_明細合計表!H16)","v":""},{"$f":"IF(入力_明細合計表!I16=\"\",\"\",入力_明細合計表!I16)","v":""},{"$f":"IF(入力_明細合計表!J16=\"\",\"\",入力_明細合計表!J16)","v":""},{"$f":"IF(入力_明細合計表!K16=\"\",\"\",入力_明細合計表!K16)","v":""},{"$f":"IF(入力_明細合計表!L16=\"\",\"\",入力_明細合計表!L16)","v":0},{"$f":"IF(入力_明細合計表!M16=\"\",\"\",入力_明細合計表!M16)","v":""},{"$f":"IF(入力_明細合計表!N16=\"\",\"\",入力_明細合計表!N16)","v":0},{"$f":"IF(入力_明細合計表!O16=\"\",\"\",入力_明細合計表!O16)","v":""}]
[{"$f":"IF(入力_明細合計表!A17=\"\",\"\",入力_明細合計表!A17)","v":""},{"$f":"IF(入力_明細合計表!B17=\"\",\"\",入力_明細合計表!B17)","v":""},{"$f":"IF(入力_明細合計表!C17=\"\",\"\",入力_明細合計表!C17)","v":""},{"$f":"IF(入力_明細合計表!D17=\"\",\"\",入力_明細合計表!D17)","v":""},{"$f":"IF(入力_明細合計表!E17=\"\",\"\",入力_明細合計表!E17)","v":""},{"$f":"IF(入力_明細合計表!F17=\"\",\"\",入力_明細合計表!F17)","v":""},{"$f":"IF(入力_明細合計表!G17=\"\",\"\",入力_明細合計表!G17)","v":""},{"$f":"IF(入力_明細合計表!H17=\"\",\"\",入力_明細合計表!H17)","v":""},{"$f":"IF(入力_明細合計表!I17=\"\",\"\",入力_明細合計表!I17)","v":""},{"$f":"IF(入力_明細合計表!J17=\"\",\"\",入力_明細合計表!J17)","v":""},{"$f":"IF(入力_明細合計表!K17=\"\",\"\",入力_明細合計表!K17)","v":""},{"$f":"IF(入力_明細合計表!L17=\"\",\"\",入力_明細合計表!L17)","v":0},{"$f":"IF(入力_明細合計表!M17=\"\",\"\",入力_明細合計表!M17)","v":""},{"$f":"IF(入力_明細合計表!N17=\"\",\"\",入力_明細合計表!N17)","v":0},{"$f":"IF(入力_明細合計表!O17=\"\",\"\",入力_明細合計表!O17)","v":""}]
[{"$f":"IF(入力_明細合計表!A18=\"\",\"\",入力_明細合計表!A18)","v":""},{"$f":"IF(入力_明細合計表!B18=\"\",\"\",入力_明細合計表!B18)","v":""},{"$f":"IF(入力_明細合計表!C18=\"\",\"\",入力_明細合計表!C18)","v":""},{"$f":"IF(入力_明細合計表!D18=\"\",\"\",入力_明細合計表!D18)","v":""},{"$f":"IF(入力_明細合計表!E18=\"\",\"\",入力_明細合計表!E18)","v":""},{"$f":"IF(入力_明細合計表!F18=\"\",\"\",入力_明細合計表!F18)","v":""},{"$f":"IF(入力_明細合計表!G18=\"\",\"\",入力_明細合計表!G18)","v":""},{"$f":"IF(入力_明細合計表!H18=\"\",\"\",入力_明細合計表!H18)","v":""},{"$f":"IF(入力_明細合計表!I18=\"\",\"\",入力_明細合計表!I18)","v":""},{"$f":"IF(入力_明細合計表!J18=\"\",\"\",入力_明細合計表!J18)","v":""},{"$f":"IF(入力_明細合計表!K18=\"\",\"\",入力_明細合計表!K18)","v":""},{"$f":"IF(入力_明細合計表!L18=\"\",\"\",入力_明細合計表!L18)","v":0},{"$f":"IF(入力_明細合計表!M18=\"\",\"\",入力_明細合計表!M18)","v":""},{"$f":"IF(入力_明細合計表!N18=\"\",\"\",入力_明細合計表!N18)","v":0},{"$f":"IF(入力_明細合計表!O18=\"\",\"\",入力_明細合計表!O18)","v":""}]
[{"$f":"IF(入力_明細合計表!A19=\"\",\"\",入力_明細合計表!A19)","v":""},{"$f":"IF(入力_明細合計表!B19=\"\",\"\",入力_明細合計表!B19)","v":""},{"$f":"IF(入力_明細合計表!C19=\"\",\"\",入力_明細合計表!C19)","v":""},{"$f":"IF(入力_明細合計表!D19=\"\",\"\",入力_明細合計表!D19)","v":""},{"$f":"IF(入力_明細合計表!E19=\"\",\"\",入力_明細合計表!E19)","v":""},{"$f":"IF(入力_明細合計表!F19=\"\",\"\",入力_明細合計表!F19)","v":""},{"$f":"IF(入力_明細合計表!G19=\"\",\"\",入力_明細合計表!G19)","v":""},{"$f":"IF(入力_明細合計表!H19=\"\",\"\",入力_明細合計表!H19)","v":""},{"$f":"IF(入力_明細合計表!I19=\"\",\"\",入力_明細合計表!I19)","v":""},{"$f":"IF(入力_明細合計表!J19=\"\",\"\",入力_明細合計表!J19)","v":""},{"$f":"IF(入力_明細合計表!K19=\"\",\"\",入力_明細合計表!K19)","v":""},{"$f":"IF(入力_明細合計表!L19=\"\",\"\",入力_明細合計表!L19)","v":0},{"$f":"IF(入力_明細合計表!M19=\"\",\"\",入力_明細合計表!M19)","v":""},{"$f":"IF(入力_明細合計表!N19=\"\",\"\",入力_明細合計表!N19)","v":0},{"$f":"IF(入力_明細合計表!O19=\"\",\"\",入力_明細合計表!O19)","v":""}]
[{"$f":"IF(入力_明細合計表!A20=\"\",\"\",入力_明細合計表!A20)","v":""},{"$f":"IF(入力_明細合計表!B20=\"\",\"\",入力_明細合計表!B20)","v":""},{"$f":"IF(入力_明細合計表!C20=\"\",\"\",入力_明細合計表!C20)","v":""},{"$f":"IF(入力_明細合計表!D20=\"\",\"\",入力_明細合計表!D20)","v":""},{"$f":"IF(入力_明細合計表!E20=\"\",\"\",入力_明細合計表!E20)","v":""},{"$f":"IF(入力_明細合計表!F20=\"\",\"\",入力_明細合計表!F20)","v":""},{"$f":"IF(入力_明細合計表!G20=\"\",\"\",入力_明細合計表!G20)","v":""},{"$f":"IF(入力_明細合計表!H20=\"\",\"\",入力_明細合計表!H20)","v":""},{"$f":"IF(入力_明細合計表!I20=\"\",\"\",入力_明細合計表!I20)","v":""},{"$f":"IF(入力_明細合計表!J20=\"\",\"\",入力_明細合計表!J20)","v":""},{"$f":"IF(入力_明細合計表!K20=\"\",\"\",入力_明細合計表!K20)","v":""},{"$f":"IF(入力_明細合計表!L20=\"\",\"\",入力_明細合計表!L20)","v":0},{"$f":"IF(入力_明細合計表!M20=\"\",\"\",入力_明細合計表!M20)","v":""},{"$f":"IF(入力_明細合計表!N20=\"\",\"\",入力_明細合計表!N20)","v":0},{"$f":"IF(入力_明細合計表!O20=\"\",\"\",入力_明細合計表!O20)","v":""}]
[{"$f":"IF(入力_明細合計表!A21=\"\",\"\",入力_明細合計表!A21)","v":""},{"$f":"IF(入力_明細合計表!B21=\"\",\"\",入力_明細合計表!B21)","v":""},{"$f":"IF(入力_明細合計表!C21=\"\",\"\",入力_明細合計表!C21)","v":""},{"$f":"IF(入力_明細合計表!D21=\"\",\"\",入力_明細合計表!D21)","v":""},{"$f":"IF(入力_明細合計表!E21=\"\",\"\",入力_明細合計表!E21)","v":""},{"$f":"IF(入力_明細合計表!F21=\"\",\"\",入力_明細合計表!F21)","v":""},{"$f":"IF(入力_明細合計表!G21=\"\",\"\",入力_明細合計表!G21)","v":""},{"$f":"IF(入力_明細合計表!H21=\"\",\"\",入力_明細合計表!H21)","v":""},{"$f":"IF(入力_明細合計表!I21=\"\",\"\",入力_明細合計表!I21)","v":""},{"$f":"IF(入力_明細合計表!J21=\"\",\"\",入力_明細合計表!J21)","v":""},{"$f":"IF(入力_明細合計表!K21=\"\",\"\",入力_明細合計表!K21)","v":""},{"$f":"IF(入力_明細合計表!L21=\"\",\"\",入力_明細合計表!L21)","v":0},{"$f":"IF(入力_明細合計表!M21=\"\",\"\",入力_明細合計表!M21)","v":""},{"$f":"IF(入力_明細合計表!N21=\"\",\"\",入力_明細合計表!N21)","v":0},{"$f":"IF(入力_明細合計表!O21=\"\",\"\",入力_明細合計表!O21)","v":""}]
[{"$f":"IF(入力_明細合計表!A22=\"\",\"\",入力_明細合計表!A22)","v":""},{"$f":"IF(入力_明細合計表!B22=\"\",\"\",入力_明細合計表!B22)","v":""},{"$f":"IF(入力_明細合計表!C22=\"\",\"\",入力_明細合計表!C22)","v":""},{"$f":"IF(入力_明細合計表!D22=\"\",\"\",入力_明細合計表!D22)","v":""},{"$f":"IF(入力_明細合計表!E22=\"\",\"\",入力_明細合計表!E22)","v":""},{"$f":"IF(入力_明細合計表!F22=\"\",\"\",入力_明細合計表!F22)","v":""},{"$f":"IF(入力_明細合計表!G22=\"\",\"\",入力_明細合計表!G22)","v":""},{"$f":"IF(入力_明細合計表!H22=\"\",\"\",入力_明細合計表!H22)","v":""},{"$f":"IF(入力_明細合計表!I22=\"\",\"\",入力_明細合計表!I22)","v":""},{"$f":"IF(入力_明細合計表!J22=\"\",\"\",入力_明細合計表!J22)","v":""},{"$f":"IF(入力_明細合計表!K22=\"\",\"\",入力_明細合計表!K22)","v":""},{"$f":"IF(入力_明細合計表!L22=\"\",\"\",入力_明細合計表!L22)","v":0},{"$f":"IF(入力_明細合計表!M22=\"\",\"\",入力_明細合計表!M22)","v":""},{"$f":"IF(入力_明細合計表!N22=\"\",\"\",入力_明細合計表!N22)","v":0},{"$f":"IF(入力_明細合計表!O22=\"\",\"\",入力_明細合計表!O22)","v":""}]
[{"$f":"IF(入力_明細合計表!A23=\"\",\"\",入力_明細合計表!A23)","v":""},{"$f":"IF(入力_明細合計表!B23=\"\",\"\",入力_明細合計表!B23)","v":""},{"$f":"IF(入力_明細合計表!C23=\"\",\"\",入力_明細合計表!C23)","v":""},{"$f":"IF(入力_明細合計表!D23=\"\",\"\",入力_明細合計表!D23)","v":""},{"$f":"IF(入力_明細合計表!E23=\"\",\"\",入力_明細合計表!E23)","v":""},{"$f":"IF(入力_明細合計表!F23=\"\",\"\",入力_明細合計表!F23)","v":""},{"$f":"IF(入力_明細合計表!G23=\"\",\"\",入力_明細合計表!G23)","v":""},{"$f":"IF(入力_明細合計表!H23=\"\",\"\",入力_明細合計表!H23)","v":""},{"$f":"IF(入力_明細合計表!I23=\"\",\"\",入力_明細合計表!I23)","v":""},{"$f":"IF(入力_明細合計表!J23=\"\",\"\",入力_明細合計表!J23)","v":""},{"$f":"IF(入力_明細合計表!K23=\"\",\"\",入力_明細合計表!K23)","v":""},{"$f":"IF(入力_明細合計表!L23=\"\",\"\",入力_明細合計表!L23)","v":0},{"$f":"IF(入力_明細合計表!M23=\"\",\"\",入力_明細合計表!M23)","v":""},{"$f":"IF(入力_明細合計表!N23=\"\",\"\",入力_明細合計表!N23)","v":0},{"$f":"IF(入力_明細合計表!O23=\"\",\"\",入力_明細合計表!O23)","v":""}]
[{"$f":"IF(入力_明細合計表!A24=\"\",\"\",入力_明細合計表!A24)","v":""},{"$f":"IF(入力_明細合計表!B24=\"\",\"\",入力_明細合計表!B24)","v":""},{"$f":"IF(入力_明細合計表!C24=\"\",\"\",入力_明細合計表!C24)","v":""},{"$f":"IF(入力_明細合計表!D24=\"\",\"\",入力_明細合計表!D24)","v":""},{"$f":"IF(入力_明細合計表!E24=\"\",\"\",入力_明細合計表!E24)","v":""},{"$f":"IF(入力_明細合計表!F24=\"\",\"\",入力_明細合計表!F24)","v":""},{"$f":"IF(入力_明細合計表!G24=\"\",\"\",入力_明細合計表!G24)","v":""},{"$f":"IF(入力_明細合計表!H24=\"\",\"\",入力_明細合計表!H24)","v":""},{"$f":"IF(入力_明細合計表!I24=\"\",\"\",入力_明細合計表!I24)","v":""},{"$f":"IF(入力_明細合計表!J24=\"\",\"\",入力_明細合計表!J24)","v":""},{"$f":"IF(入力_明細合計表!K24=\"\",\"\",入力_明細合計表!K24)","v":""},{"$f":"IF(入力_明細合計表!L24=\"\",\"\",入力_明細合計表!L24)","v":0},{"$f":"IF(入力_明細合計表!M24=\"\",\"\",入力_明細合計表!M24)","v":""},{"$f":"IF(入力_明細合計表!N24=\"\",\"\",入力_明細合計表!N24)","v":0},{"$f":"IF(入力_明細合計表!O24=\"\",\"\",入力_明細合計表!O24)","v":""}]
[{"$f":"IF(入力_明細合計表!A25=\"\",\"\",入力_明細合計表!A25)","v":""},{"$f":"IF(入力_明細合計表!B25=\"\",\"\",入力_明細合計表!B25)","v":""},{"$f":"IF(入力_明細合計表!C25=\"\",\"\",入力_明細合計表!C25)","v":""},{"$f":"IF(入力_明細合計表!D25=\"\",\"\",入力_明細合計表!D25)","v":""},{"$f":"IF(入力_明細合計表!E25=\"\",\"\",入力_明細合計表!E25)","v":""},{"$f":"IF(入力_明細合計表!F25=\"\",\"\",入力_明細合計表!F25)","v":""},{"$f":"IF(入力_明細合計表!G25=\"\",\"\",入力_明細合計表!G25)","v":""},{"$f":"IF(入力_明細合計表!H25=\"\",\"\",入力_明細合計表!H25)","v":""},{"$f":"IF(入力_明細合計表!I25=\"\",\"\",入力_明細合計表!I25)","v":""},{"$f":"IF(入力_明細合計表!J25=\"\",\"\",入力_明細合計表!J25)","v":""},{"$f":"IF(入力_明細合計表!K25=\"\",\"\",入力_明細合計表!K25)","v":""},{"$f":"IF(入力_明細合計表!L25=\"\",\"\",入力_明細合計表!L25)","v":0},{"$f":"IF(入力_明細合計表!M25=\"\",\"\",入力_明細合計表!M25)","v":""},{"$f":"IF(入力_明細合計表!N25=\"\",\"\",入力_明細合計表!N25)","v":0},{"$f":"IF(入力_明細合計表!O25=\"\",\"\",入力_明細合計表!O25)","v":""}]
[{"$f":"IF(入力_明細合計表!A26=\"\",\"\",入力_明細合計表!A26)","v":""},{"$f":"IF(入力_明細合計表!B26=\"\",\"\",入力_明細合計表!B26)","v":""},{"$f":"IF(入力_明細合計表!C26=\"\",\"\",入力_明細合計表!C26)","v":""},{"$f":"IF(入力_明細合計表!D26=\"\",\"\",入力_明細合計表!D26)","v":""},{"$f":"IF(入力_明細合計表!E26=\"\",\"\",入力_明細合計表!E26)","v":""},{"$f":"IF(入力_明細合計表!F26=\"\",\"\",入力_明細合計表!F26)","v":""},{"$f":"IF(入力_明細合計表!G26=\"\",\"\",入力_明細合計表!G26)","v":""},{"$f":"IF(入力_明細合計表!H26=\"\",\"\",入力_明細合計表!H26)","v":""},{"$f":"IF(入力_明細合計表!I26=\"\",\"\",入力_明細合計表!I26)","v":""},{"$f":"IF(入力_明細合計表!J26=\"\",\"\",入力_明細合計表!J26)","v":""},{"$f":"IF(入力_明細合計表!K26=\"\",\"\",入力_明細合計表!K26)","v":""},{"$f":"IF(入力_明細合計表!L26=\"\",\"\",入力_明細合計表!L26)","v":0},{"$f":"IF(入力_明細合計表!M26=\"\",\"\",入力_明細合計表!M26)","v":""},{"$f":"IF(入力_明細合計表!N26=\"\",\"\",入力_明細合計表!N26)","v":0},{"$f":"IF(入力_明細合計表!O26=\"\",\"\",入力_明細合計表!O26)","v":""}]
[{"$f":"IF(入力_明細合計表!A27=\"\",\"\",入力_明細合計表!A27)","v":"税　　抜　　計"},{"$f":"IF(入力_明細合計表!B27=\"\",\"\",入力_明細合計表!B27)","v":""},{"$f":"IF(入力_明細合計表!C27=\"\",\"\",入力_明細合計表!C27)","v":""},{"$f":"IF(入力_明細合計表!D27=\"\",\"\",入力_明細合計表!D27)","v":""},{"$f":"IF(入力_明細合計表!E27=\"\",\"\",入力_明細合計表!E27)","v":""},{"$f":"IF(入力_明細合計表!F27=\"\",\"\",入力_明細合計表!F27)","v":0},{"$f":"IF(入力_明細合計表!G27=\"\",\"\",入力_明細合計表!G27)","v":""},{"$f":"IF(入力_明細合計表!H27=\"\",\"\",入力_明細合計表!H27)","v":0},{"$f":"IF(入力_明細合計表!I27=\"\",\"\",入力_明細合計表!I27)","v":""},{"$f":"IF(入力_明細合計表!J27=\"\",\"\",入力_明細合計表!J27)","v":0},{"$f":"IF(入力_明細合計表!K27=\"\",\"\",入力_明細合計表!K27)","v":""},{"$f":"IF(入力_明細合計表!L27=\"\",\"\",入力_明細合計表!L27)","v":0},{"$f":"IF(入力_明細合計表!M27=\"\",\"\",入力_明細合計表!M27)","v":""},{"$f":"IF(入力_明細合計表!N27=\"\",\"\",入力_明細合計表!N27)","v":0},{"$f":"IF(入力_明細合計表!O27=\"\",\"\",入力_明細合計表!O27)","v":""}]
[]
["西武建設株式会社"]

{"sheet":"請求明細書2ページ目以降(印刷対象外)","index":5,"n_rows":29,"n_cols":15,"rows_kept":29,"cut":false,"hidden":false,"merged":[[1,0,1,4],[1,6,1,8],[1,10,1,14],[3,1,4,1],[3,2,3,5],[3,6,3,7],[3,8,3,9],[3,10,3,11],[3,12,3,13],[3,14,4,14]]}
[null,null,null,null,null,"請　求　明　細　書"]
[{"$f":"\"工事件名　\"&請求書!G7","v":"工事件名　"},null,null,null,null,null,{"$f":"請求書!G5&\" 年　\"&請求書!J5&\" 月分\"","v":" 年　 月分"},null,null,null,{"$f":"\"会社名　\"&請求書!AB5","v":"会社名　"}]
[]
["工種・品名","税区分","契約",null,null,null,"前回迄出来高・請求",null,"今回出来高・請求",null,"累計出来高・請求",null,"契約残",null,"進捗率"]
["（形状・寸法等）",null,"数量","単位","単価","金額","数量","金額","数量","金額","数量","金額","数量","金額"]
[]
[]
[]
[]
[]
[]
[]
[]
[]
[]
[]
[]
[]
[]
[]
[]
[]
[]
[]
[]
[]
["税　　抜　　計"]
[]
["西武建設株式会社"]